fUST/lending_fUST_20241205
["ID","MTS","AMOUNT","RATE_DAILY","PERIOD"]
[344344563,1733358639315,-500.0,0.00024657,2]
[344344564,1733358639326,-500.0,0.00024657,7]
[344344565,1733358639337,-500.0,0.00024657,7]
[344344566,1733358639348,-500.0,0.00024657,7]
[344344567,1733358639360,-500.0,0.00024657,7]
[344344568,1733358639373,-500.0,0.00024657,7]
[344344569,1733358639384,-315.80884621,0.00024657,7]
[344344570,1733358639396,-500.0,0.00024657,7]
[344344571,1733358639407,-859.9,0.00024657,7]
[344344572,1733358639418,-500.0,0.00024657,7]
[344344573,1733358639429,-500.0,0.00024657,7]
[344344574,1733358639440,-500.0,0.00024657,7]
[344344575,1733358639452,-500.0,0.00024657,7]
[344344576,1733358639464,-500.0,0.00024657,7]
[344344577,1733358639476,-500.0,0.00024657,7]
[344344578,1733358639489,-155.13039823,0.00024696,2]
[344344579,1733358639502,-11588.85911147,0.00024831,3]
[344344580,1733358639513,-587.0,0.00024862,2]
[344344581,1733358639524,-6057.23556538,0.0002493,2]
[344344582,1733358639535,-500.0,0.00024931,7]
[344344583,1733358639544,-500.0,0.00024931,7]
[344344584,1733358639555,-500.0,0.00024931,7]
[344344585,1733358639566,-500.0,0.00024931,7]
[344344586,1733358639577,-543.72586911,0.00024931,7]
[344344587,1733358639586,-500.0,0.00024931,7]
[344344588,1733358639597,-500.0,0.00024931,7]
[344344589,1733358639606,-500.0,0.00024931,7]
[344344590,1733358639616,-500.0,0.00024931,7]
[344344591,1733358639627,-500.0,0.00024931,7]
[344344592,1733358639637,-500.0,0.00024931,7]
[344344593,1733358639647,-500.0,0.00024931,7]
[344344594,1733358639657,-505.77941421,0.00024931,7]
[344344595,1733358639667,-500.0,0.00024931,7]
[344344596,1733358639677,-500.0,0.00024931,7]
[344344597,1733358639855,-500.0,0.00024931,7]
[344344598,1733358639872,-500.0,0.00024931,7]
[344344599,1733358639883,-755.13,0.00024931,7]
[344344601,1733358639893,-500.0,0.00024931,7]
[344344602,1733358639903,-500.0,0.00024931,7]
[344344603,1733358639913,-440.42584179,0.00024931,7]
[344344604,1733358639923,-500.0,0.00024931,7]
[344344606,1733358639932,-500.0,0.00024931,7]
[344344607,1733358639942,-501.80122249,0.00024931,7]
[344344608,1733358639952,-500.0,0.00024931,7]
[344344609,1733358639962,-489.56447895,0.00024931,7]
[344344610,1733358639972,-500.0,0.00024931,2]
[344344611,1733358639981,-500.0,0.00024931,7]
[344344612,1733358639990,-496.77708553,0.00024931,7]
[344344614,1733358640002,-500.0,0.00024931,7]
[344344616,1733358640012,-500.0,0.00024931,7]
[344344617,1733358640022,-501.692362,0.00024931,7]
[344344619,1733358640032,-500.0,0.00024931,7]
[344344620,1733358640042,-530.65,0.00024931,7]
[344344621,1733358640051,-500.0,0.00024931,7]
[344344622,1733358640061,-500.0,0.00024931,7]
[344344623,1733358640070,-500.0,0.00024931,7]
[344344624,1733358640080,-500.0,0.00024931,7]
[344344625,1733358640090,-183.06704887,0.00024931,7]
[344344626,1733358640099,-500.0,0.00024931,7]
[344344627,1733358640109,-500.0,0.00024931,7]
[344344628,1733358640119,-500.0,0.00024931,7]
[344344629,1733358640128,-500.0,0.00024931,7]
[344344630,1733358640137,-500.0,0.00024931,7]
[344344631,1733358640147,-500.0,0.00024931,7]
[344344632,1733358640157,-500.0,0.00024931,7]
[344344633,1733358640167,-500.0,0.00024931,7]
[344344634,1733358640177,-500.0,0.00024931,7]
[344344635,1733358640186,-500.0,0.00024931,7]
[344344636,1733358640196,-500.0,0.00024931,7]
[344344637,1733358640206,-500.0,0.00024931,7]
[344344638,1733358640216,-500.0,0.00024931,7]
[344344639,1733358640226,-500.0,0.00024931,7]
[344344640,1733358640236,-500.0,0.00024931,7]
[344344641,1733358640245,-500.0,0.00024931,7]
[344344642,1733358640260,-500.0,0.00024931,7]
[344344643,1733358640274,-500.0,0.00024931,7]
[344344644,1733358640284,-500.0,0.00024931,7]
[344344645,1733358640294,-500.0,0.00024931,7]
[344344646,1733358640303,-500.0,0.00024931,7]
[344344647,1733358640312,-500.0,0.00024931,7]
[344344648,1733358640322,-500.0,0.00024931,7]
[344344649,1733358640331,-500.0,0.00024931,7]
[344344650,1733358640341,-749.7,0.00024931,7]
[344344651,1733358640350,-500.0,0.00024931,7]
[344344652,1733358640363,-500.0,0.00024931,7]
[344344653,1733358640373,-500.0,0.00024931,7]
[344344654,1733358640383,-500.0,0.00024931,7]
[344344655,1733358640392,-500.0,0.00024931,7]
[344344656,1733358640403,-500.0,0.00024931,7]
[344344657,1733358640412,-500.0,0.00024931,7]
[344344658,1733358640422,-513.54,0.00024931,7]
[344344659,1733358640433,-500.0,0.00024931,7]
[344344660,1733358640443,-438.91092585,0.00024931,7]
[344344661,1733358640454,-500.0,0.00024931,7]
[344344662,1733358640464,-500.0,0.00024931,7]
[344344663,1733358640474,-500.0,0.00024931,7]
[344344664,1733358640484,-500.0,0.00024931,7]
[344344665,1733358640494,-500.0,0.00024931,7]
[344344667,1733358640508,-500.0,0.00024931,7]
[344344668,1733358640518,-500.0,0.00024931,7]
[344344670,1733358640527,-500.0,0.00024931,7]
[344344671,1733358640537,-500.0,0.00024931,7]
[344344672,1733358640547,-500.0,0.00024931,7]
[344344673,1733358640556,-500.0,0.00024931,7]
[344344674,1733358640566,-500.0,0.00024931,7]
[344344675,1733358640576,-304.1019695,0.00024931,7]
[344344676,1733358640585,-500.0,0.00024931,7]
[344344677,1733358640595,-500.0,0.00024931,7]
[344344678,1733358640605,-500.0,0.00024931,7]
[344344679,1733358640614,-631.02282396,0.00024931,7]
[344344680,1733358640624,-500.0,0.00024931,7]
[344344681,1733358640634,-500.0,0.00024931,7]
[344344682,1733358640644,-500.0,0.00024931,7]
[344344683,1733358640654,-571.79,0.00024931,7]
[344344684,1733358640664,-500.0,0.00024931,7]
[344344685,1733358640674,-500.0,0.00024931,7]
[344344686,1733358640684,-500.0,0.00024931,7]
[344344687,1733358640694,-500.0,0.00024931,7]
[344344688,1733358640703,-500.0,0.00024931,7]
[344344689,1733358640713,-500.0,0.00024931,7]
[344344690,1733358640722,-393.41819285,0.00024931,7]
[344344691,1733358640732,-500.0,0.00024931,7]
[344344692,1733358640742,-500.0,0.00024931,7]
[344344693,1733358640753,-500.0,0.00024931,7]
[344344694,1733358640763,-504.38262309,0.00024931,7]
[344344695,1733358640772,-500.0,0.00024931,7]
[344344696,1733358640782,-7872.39,0.00024931,7]
[344344697,1733358640792,-500.0,0.00024931,7]
[344344698,1733358640802,-500.0,0.00024931,7]
[344344699,1733358640812,-500.0,0.00024931,7]
[344344700,1733358640821,-500.0,0.00024931,7]
[344344701,1733358640830,-500.0,0.00024931,7]
[344344702,1733358640840,-500.0,0.00024931,7]
[344344703,1733358640850,-508.85006222,0.00024931,7]
[344344704,1733358640859,-500.0,0.00024931,7]
[344344705,1733358640869,-500.0,0.00024931,7]
[344344706,1733358640878,-1744.62,0.00024931,7]
[344344707,1733358640889,-3512.76,0.00024931,7]
[344344708,1733358640899,-500.0,0.00024931,7]
[344344709,1733358640908,-500.0,0.00024931,7]
[344344710,1733358640918,-500.0,0.00024931,7]
[344344711,1733358640928,-500.0,0.00024931,7]
[344344712,1733358640937,-820.82,0.00024931,7]
[344344713,1733358640947,-500.0,0.00024931,7]
[344344714,1733358640956,-500.0,0.00024931,7]
[344344715,1733358640966,-500.0,0.00024931,7]
[344344716,1733358640976,-349.2393744,0.00024931,7]
[344344717,1733358640985,-500.0,0.00024931,7]
[344344718,1733358640995,-500.0,0.00024931,7]
[344344719,1733358641008,-500.0,0.00024931,7]
[344344720,1733358641019,-500.0,0.00024931,7]
[344344721,1733358641028,-500.0,0.00024931,7]
[344344722,1733358641038,-500.0,0.00024931,7]
[344344723,1733358641048,-500.0,0.00024931,7]
[344344724,1733358641057,-580.17,0.00024931,7]
[344344725,1733358641068,-500.0,0.00024931,7]
[344344726,1733358641078,-500.0,0.00024931,7]
[344344727,1733358641088,-516.39,0.00024931,7]
[344344728,1733358641098,-694.69,0.00024931,7]
[344344729,1733358641108,-671.37,0.00024931,7]
[344344730,1733358641117,-500.0,0.00024931,7]
[344344731,1733358641127,-500.0,0.00024931,7]
[344344732,1733358641137,-500.0,0.00024931,7]
[344344733,1733358641147,-500.0,0.00024931,7]
[344344734,1733358641157,-500.0,0.00024931,7]
[344344735,1733358641167,-500.0,0.00024931,7]
[344344736,1733358641178,-500.0,0.00024931,7]
[344344737,1733358641188,-1504.16,0.00024931,7]
[344344738,1733358641197,-500.0,0.00024931,7]
[344344739,1733358641207,-550.71578763,0.00024931,7]
[344344740,1733358641216,-500.0,0.00024931,7]
[344344741,1733358641226,-500.0,0.00024931,7]
[344344742,1733358641236,-500.0,0.00024931,7]
[344344743,1733358641246,-500.0,0.00024931,7]
[344344744,1733358641259,-500.0,0.00024931,7]
[344344745,1733358641269,-887.35,0.00024931,7]
[344344746,1733358641279,-500.0,0.00024931,7]
[344344747,1733358641288,-1954.98,0.00024931,7]
[344344748,1733358641298,-500.0,0.00024931,7]
[344344749,1733358641308,-500.0,0.00024931,7]
[344344750,1733358641318,-500.0,0.00024931,7]
[344344751,1733358641327,-500.0,0.00024931,7]
[344344752,1733358641337,-514.47,0.00024931,7]
[344344753,1733358641346,-500.0,0.00024931,7]
[344344754,1733358641356,-656.67,0.00024931,7]
[344344755,1733358641366,-1052.9,0.00024931,7]
[344344756,1733358641380,-500.0,0.00024931,7]
[344344757,1733358641389,-500.0,0.00024931,7]
[344344758,1733358641400,-500.0,0.00024931,7]
[344344759,1733358641410,-500.0,0.00024931,7]
[344344760,1733358641421,-500.0,0.00024931,7]
[344344761,1733358641431,-500.0,0.00024931,7]
[344344762,1733358641442,-384.97651018,0.00024931,7]
[344344763,1733358641452,-500.0,0.00024931,7]
[344344764,1733358641464,-859.9,0.00024931,7]
[344344765,1733358641473,-500.0,0.00024931,7]
[344344766,1733358641483,-500.0,0.00024931,7]
[344344767,1733358641493,-500.0,0.00024931,7]
[344344768,1733358641507,-500.0,0.00024931,7]
[344344769,1733358641518,-500.0,0.00024973,2]
[344344770,1733358641529,-22677.87838903,0.00025,7]
[344344771,1733358641540,-1043.93802803,0.00025,2]
[344344772,1733358641550,-711852.92382972,0.00025,2]
[344344773,1733358641560,-57141.92416512,0.00025,2]
[344344774,1733358641570,-166.05135403,0.00025,2]
[344344775,1733358641580,-204.11264877,0.00025,2]
[344344776,1733358641590,-10364.0,0.00025,2]
[344344777,1733358641600,-347.96801436,0.00025,2]
[344344778,1733358641609,-830.83691558,0.00025,2]
[344344779,1733358641619,-240264.0,0.00025,2]
[344344780,1733358641629,-953.86919686,0.00025005,2]
[344344781,1733358641639,-500.0,0.00025073,2]
[344344782,1733358641649,-501.82622799,0.00025073,2]
[344344783,1733358641659,-502.711171,0.00025073,2]
[344344784,1733358641669,-254461.36888917,0.0002509,2]
[344344785,1733358641679,-33333.0,0.00025105,2]
[344344786,1733358641688,-500.0,0.00025205,7]
[344344787,1733358641697,-500.0,0.00025205,7]
[344344788,1733358641707,-500.0,0.00025205,7]
[344344789,1733358641717,-500.0,0.00025205,7]
[344344790,1733358641726,-755.13,0.00025205,7]
[344344791,1733358641736,-500.0,0.00025205,7]
[344344792,1733358641745,-500.0,0.00025205,7]
[344344793,1733358641758,-500.0,0.00025205,7]
[344344794,1733358641767,-500.0,0.00025205,7]
[344344795,1733358641776,-501.80525261,0.00025205,7]
[344344796,1733358641786,-500.0,0.00025205,2]
[344344797,1733358641796,-500.0,0.00025205,7]
[344344798,1733358641805,-500.0,0.00025205,7]
[344344799,1733358641815,-500.0,0.00025205,7]
[344344800,1733358641825,-500.0,0.00025205,7]
[344344801,1733358641834,-530.65,0.00025205,7]
[344344802,1733358641843,-500.0,0.00025205,7]
[344344803,1733358641853,-500.0,0.00025205,7]
[344344804,1733358641862,-500.0,0.00025205,7]
[344344805,1733358641871,-500.0,0.00025205,7]
[344344806,1733358641881,-500.0,0.00025205,7]
[344344807,1733358641890,-500.0,0.00025205,7]
[344344808,1733358641900,-500.0,0.00025205,7]
[344344809,1733358641910,-500.0,0.00025205,7]
[344344810,1733358641920,-500.0,0.00025205,7]
[344344811,1733358641929,-500.0,0.00025205,7]
[344344812,1733358641939,-500.0,0.00025205,7]
[344344813,1733358641949,-500.0,0.00025205,7]
[344344814,1733358641958,-500.0,0.00025205,7]
[344344815,1733358641968,-500.0,0.00025205,7]
[344344816,1733358641979,-500.0,0.00025205,7]
[344344817,1733358641988,-614.53,0.00025205,7]
[344344818,1733358641998,-500.0,0.00025205,7]
[344344819,1733358642010,-500.0,0.00025205,7]
[344344820,1733358642021,-749.7,0.00025205,7]
[344344821,1733358642030,-500.0,0.00025205,7]
[344344822,1733358642040,-500.0,0.00025205,7]
[344344823,1733358642050,-500.0,0.00025205,7]
[344344824,1733358642059,-500.0,0.00025205,7]
[344344825,1733358642069,-513.54,0.00025205,7]
[344344826,1733358642079,-500.0,0.00025205,7]
[344344827,1733358642088,-500.0,0.00025205,7]
[344344828,1733358642097,-500.0,0.00025205,7]
[344344829,1733358642107,-500.0,0.00025205,7]
[344344830,1733358642119,-500.0,0.00025205,7]
[344344831,1733358642128,-500.0,0.00025205,7]
[344344832,1733358642138,-500.0,0.00025205,7]
[344344833,1733358642147,-500.0,0.00025205,7]
[344344834,1733358642156,-500.0,0.00025205,7]
[344344835,1733358642166,-500.0,0.00025205,7]
[344344836,1733358642176,-500.0,0.00025205,7]
[344344837,1733358642185,-500.0,0.00025205,7]
[344344838,1733358642195,-500.0,0.00025205,7]
[344344839,1733358642205,-500.0,0.00025205,7]
[344344840,1733358642214,-571.79,0.00025205,7]
[344344841,1733358642224,-506.13617883,0.00025205,7]
[344344842,1733358642234,-500.0,0.00025205,7]
[344344843,1733358642244,-500.0,0.00025205,7]
[344344844,1733358642256,-500.0,0.00025205,7]
[344344845,1733358642265,-500.0,0.00025205,7]
[344344846,1733358642275,-500.0,0.00025205,7]
[344344847,1733358642285,-500.0,0.00025205,7]
[344344848,1733358642294,-7872.39,0.00025205,7]
[344344849,1733358642304,-500.0,0.00025205,7]
[344344850,1733358642313,-500.0,0.00025205,7]
[344344851,1733358642323,-500.0,0.00025205,7]
[344344852,1733358642333,-500.0,0.00025205,7]
[344344853,1733358642342,-500.0,0.00025205,7]
[344344854,1733358642352,-1744.62,0.00025205,7]
[344344855,1733358642365,-3512.76,0.00025205,7]
[344344856,1733358642375,-500.0,0.00025205,7]
[344344857,1733358642385,-500.0,0.00025205,7]
[344344858,1733358642395,-500.0,0.00025205,7]
[344344859,1733358642405,-820.82,0.00025205,7]
[344344860,1733358642415,-500.0,0.00025205,7]
[344344861,1733358642424,-500.0,0.00025205,7]
[344344862,1733358642434,-500.0,0.00025205,7]
[344344863,1733358642445,-516.28226604,0.00025205,7]
[344344864,1733358642455,-500.0,0.00025205,7]
[344344865,1733358642465,-500.0,0.00025205,7]
[344344866,1733358642474,-500.0,0.00025205,7]
[344344867,1733358642484,-580.17,0.00025205,7]
[344344868,1733358642493,-500.0,0.00025205,7]
[344344869,1733358642506,-500.0,0.00025205,7]
[344344870,1733358642516,-516.39,0.00025205,7]
[344344871,1733358642526,-694.69,0.00025205,7]
[344344872,1733358642536,-671.37,0.00025205,7]
[344344873,1733358642546,-543.03105249,0.00025205,7]
[344344874,1733358642557,-500.0,0.00025205,7]
[344344875,1733358642568,-500.0,0.00025205,7]
[344344876,1733358642579,-500.0,0.00025205,7]
[344344877,1733358642589,-500.0,0.00025205,7]
[344344878,1733358642599,-500.0,0.00025205,7]
[344344879,1733358642608,-1504.16,0.00025205,7]
[344344880,1733358642618,-500.0,0.00025205,7]
[344344881,1733358642628,-500.0,0.00025205,7]
[344344882,1733358642638,-500.0,0.00025205,7]
[344344883,1733358642648,-500.0,0.00025205,7]
[344344884,1733358642658,-500.0,0.00025205,7]
[344344885,1733358642668,-500.0,0.00025205,7]
[344344886,1733358642678,-887.35,0.00025205,7]
[344344887,1733358642688,-500.0,0.00025205,7]
[344344888,1733358642698,-1954.98,0.00025205,7]
[344344889,1733358642707,-500.0,0.00025205,7]
[344344890,1733358642717,-500.0,0.00025205,7]
[344344891,1733358642726,-500.0,0.00025205,7]
[344344892,1733358642736,-500.0,0.00025205,7]
[344344893,1733358642745,-514.47,0.00025205,7]
[344344894,1733358642759,-656.67,0.00025205,7]
[344344895,1733358642769,-1052.9,0.00025205,7]
[344344896,1733358642778,-500.0,0.00025205,7]
[344344897,1733358642788,-500.0,0.00025205,7]
[344344899,1733358642798,-500.0,0.00025205,7]
[344344900,1733358642808,-500.0,0.00025205,7]
[344344901,1733358642817,-859.9,0.00025205,7]
[344344902,1733358642827,-500.0,0.00025205,7]
[344344903,1733358642837,-500.0,0.00025205,7]
[344344904,1733358642846,-501.56826379,0.00025273,2]
[344344905,1733358642856,-516.37827679,0.00025273,2]
[344344906,1733358642866,-500.0,0.00025273,2]
[344344907,1733358642875,-167.761,0.00025279,9]
[344344908,1733358642885,-155.784346,0.000253,19]
[344344909,1733358642894,-323.14,0.0002536,3]
[344344910,1733358642904,-666.0,0.00025379,2]
[344344911,1733358642914,-587.0,0.00025424,2]
[344344912,1733358642923,-2591.76836169,0.00025468,2]
[344344913,1733358642933,-500.0,0.00025479,7]
[344344914,1733358642943,-500.0,0.00025479,7]
[344344915,1733358642953,-500.0,0.00025479,7]
[344344916,1733358642963,-500.0,0.00025479,7]
[344344917,1733358642973,-755.13,0.00025479,7]
[344344918,1733358642983,-500.0,0.00025479,7]
[344344919,1733358642992,-500.0,0.00025479,7]
[344344920,1733358643002,-500.0,0.00025479,7]
[344344921,1733358643014,-500.0,0.00025479,7]
[344344922,1733358643023,-500.0,0.00025479,7]
[344344923,1733358643033,-507.80014924,0.00025479,7]
[344344925,1733358643042,-355.34,0.00025479,7]
[344344927,1733358643051,-530.65,0.00025479,7]
[344344928,1733358643060,-500.0,0.00025479,7]
[344344929,1733358643070,-500.0,0.00025479,7]
[344344930,1733358643080,-500.0,0.00025479,7]
[344344933,1733358643089,-500.0,0.00025479,7]
[344344938,1733358643098,-500.0,0.00025479,7]
[344344939,1733358643243,-500.0,0.00025479,7]
[344344940,1733358643256,-535.0377918,0.00025479,7]
[344344942,1733358643268,-500.0,0.00025479,7]
[344344943,1733358643279,-500.0,0.00025479,7]
[344344945,1733358643288,-749.7,0.00025479,7]
[344344946,1733358643298,-500.0,0.00025479,7]
[344344947,1733358643308,-500.0,0.00025479,7]
[344344948,1733358643318,-500.0,0.00025479,7]
[344344950,1733358643327,-500.0,0.00025479,7]
[344344952,1733358643337,-513.54,0.00025479,7]
[344344954,1733358643347,-500.0,0.00025479,7]
[344344955,1733358643356,-500.0,0.00025479,7]
[344344956,1733358643367,-500.0,0.00025479,7]
[344344957,1733358643379,-500.0,0.00025479,7]
[344344958,1733358643389,-500.0,0.00025479,7]
[344344959,1733358643399,-500.0,0.00025479,7]
[344344960,1733358643409,-500.0,0.00025479,7]
[344344961,1733358643420,-500.0,0.00025479,7]
[344344962,1733358643429,-500.0,0.00025479,7]
[344344963,1733358643439,-500.0,0.00025479,7]
[344344964,1733358643451,-500.0,0.00025479,7]
[344344965,1733358643460,-571.79,0.00025479,7]
[344344966,1733358643470,-500.0,0.00025479,7]
[344344967,1733358643480,-500.0,0.00025479,7]
[344344968,1733358643490,-500.0,0.00025479,7]
[344344969,1733358643501,-500.0,0.00025479,7]
[344344970,1733358643516,-500.0,0.00025479,7]
[344344971,1733358643526,-500.0,0.00025479,7]
[344344972,1733358643536,-7872.39,0.00025479,7]
[344344973,1733358643546,-500.0,0.00025479,7]
[344344974,1733358643556,-500.0,0.00025479,7]
[344344975,1733358643566,-500.0,0.00025479,7]
[344344976,1733358643576,-270.37304615,0.00025479,7]
[344344977,1733358643585,-500.0,0.00025479,7]
[344344978,1733358643596,-1744.62,0.00025479,7]
[344344979,1733358643606,-3512.76,0.00025479,7]
[344344980,1733358643616,-500.0,0.00025479,7]
[344344981,1733358643626,-500.0,0.00025479,7]
[344344983,1733358643637,-500.0,0.00025479,7]
[344344985,1733358643646,-500.0,0.00025479,7]
[344344986,1733358643656,-500.0,0.00025479,7]
[344344987,1733358643666,-500.0,0.00025479,7]
[344344988,1733358643676,-500.0,0.00025479,7]
[344344989,1733358643685,-580.17,0.00025479,7]
[344344990,1733358643695,-500.0,0.00025479,7]
[344344991,1733358643706,-500.0,0.00025479,7]
[344344992,1733358643716,-516.39,0.00025479,7]
[344344993,1733358643726,-694.69,0.00025479,7]
[344344994,1733358643737,-671.37,0.00025479,7]
[344344995,1733358643746,-500.0,0.00025479,7]
[344344996,1733358643760,-500.0,0.00025479,7]
[344344997,1733358643770,-500.0,0.00025479,7]
[344344998,1733358643785,-1504.16,0.00025479,7]
[344344999,1733358643795,-500.0,0.00025479,7]
[344345000,1733358643806,-500.0,0.00025479,7]
[344345001,1733358643815,-500.0,0.00025479,7]
[344345002,1733358643825,-500.0,0.00025479,7]
[344345003,1733358643835,-500.0,0.00025479,7]
[344345004,1733358643845,-887.35,0.00025479,7]
[344345005,1733358643855,-1954.98,0.00025479,7]
[344345006,1733358643864,-500.0,0.00025479,7]
[344345007,1733358643874,-500.0,0.00025479,7]
[344345008,1733358643884,-500.0,0.00025479,7]
[344345009,1733358643894,-514.47,0.00025479,7]
[344345010,1733358643903,-656.67,0.00025479,7]
[344345011,1733358643913,-1052.9,0.00025479,7]
[344345012,1733358643923,-500.0,0.00025479,7]
[344345013,1733358643933,-500.0,0.00025479,7]
[344345014,1733358643943,-500.0,0.00025479,7]
[344345015,1733358643952,-500.0,0.00025479,7]
[344345016,1733358643962,-859.9,0.00025479,7]
[344345017,1733358643971,-500.0,0.00025479,7]
[344345018,1733358643981,-500.0,0.00025479,7]
[344345019,1733358643991,-151.0,0.000255,19]
[344345020,1733358644000,-783.9150284,0.00025521,2]
[344345021,1733358644013,-1500.0,0.00025522,2]
[344345022,1733358644022,-500.0,0.00025522,2]
[344345023,1733358644031,-151.0,0.000256,19]
[344345024,1733358644040,-953.86919686,0.00025647,2]
[344345025,1733358644050,-181.01608879,0.00025752,2]
[344345026,1733358644059,-500.0,0.00025753,7]
[344345027,1733358644069,-500.0,0.00025753,7]
[344345028,1733358644079,-500.0,0.00025753,7]
[344345029,1733358644089,-500.0,0.00025753,7]
[344345030,1733358644098,-755.13,0.00025753,7]
[344345031,1733358644108,-163.28,0.00025753,7]
[344345032,1733358644118,-222.22890326,0.00025753,7]
[344345033,1733358644127,-500.0,0.00025753,7]
[344345034,1733358644137,-530.65,0.00025753,7]
[344345035,1733358644146,-500.0,0.00025753,7]
[344345036,1733358644156,-500.0,0.00025753,7]
[344345037,1733358644165,-586.03420568,0.00025753,7]
[344345038,1733358644174,-500.0,0.00025753,7]
[344345039,1733358644184,-500.0,0.00025753,7]
[344345040,1733358644193,-500.0,0.00025753,7]
[344345041,1733358644203,-500.0,0.00025753,7]
[344345042,1733358644212,-749.7,0.00025753,7]
[344345043,1733358644222,-500.0,0.00025753,7]
[344345044,1733358644231,-500.0,0.00025753,7]
[344345045,1733358644240,-500.0,0.00025753,7]
[344345046,1733358644250,-513.54,0.00025753,7]
[344345047,1733358644263,-500.0,0.00025753,7]
[344345048,1733358644272,-500.0,0.00025753,7]
[344345049,1733358644282,-500.0,0.00025753,7]
[344345050,1733358644291,-500.0,0.00025753,7]
[344345051,1733358644300,-500.0,0.00025753,7]
[344345052,1733358644310,-500.0,0.00025753,7]
[344345053,1733358644320,-500.0,0.00025753,7]
[344345054,1733358644329,-500.0,0.00025753,7]
[344345055,1733358644339,-500.0,0.00025753,7]
[344345056,1733358644348,-500.0,0.00025753,7]
[344345057,1733358644359,-571.79,0.00025753,7]
[344345058,1733358644370,-500.0,0.00025753,7]
[344345059,1733358644380,-500.0,0.00025753,7]
[344345060,1733358644390,-500.0,0.00025753,7]
[344345061,1733358644399,-500.0,0.00025753,7]
[344345062,1733358644410,-500.0,0.00025753,7]
[344345063,1733358644419,-208.15290108,0.00025753,7]
[344345064,1733358644429,-7872.39,0.00025753,7]
[344345065,1733358644441,-500.0,0.00025753,7]
[344345066,1733358644451,-500.0,0.00025753,7]
[344345067,1733358644462,-500.0,0.00025753,7]
[344345068,1733358644473,-1744.62,0.00025753,7]
[344345069,1733358644483,-3512.76,0.00025753,7]
[344345070,1733358644492,-500.0,0.00025753,7]
[344345071,1733358644502,-500.0,0.00025753,7]
[344345072,1733358644514,-500.0,0.00025753,7]
[344345073,1733358644523,-500.0,0.00025753,7]
[344345074,1733358644533,-500.0,0.00025753,7]
[344345075,1733358644542,-580.17,0.00025753,7]
[344345076,1733358644551,-500.0,0.00025753,7]
[344345077,1733358644560,-500.0,0.00025753,7]
[344345078,1733358644570,-516.39,0.00025753,7]
[344345079,1733358644580,-694.69,0.00025753,7]
[344345080,1733358644590,-671.37,0.00025753,7]
[344345081,1733358644600,-500.0,0.00025753,7]
[344345082,1733358644609,-500.0,0.00025753,7]
[344345083,1733358644619,-500.0,0.00025753,7]
[344345084,1733358644628,-1504.16,0.00025753,7]
[344345085,1733358644638,-201.90764485,0.00025753,7]